{"text_format":"3","workbook":"xlsx","n_sheets":14,"sheets":["Suma","Część 01","Część 02","Część 03","Część 04","Część 05","Część 06","Część 07","Część 08","Część 09","Część 10","Część 11","Część 12","Część 13"],"not_rendered":{"macros":1,"defined_names":3},"read":"whole","date_system":"1900"}

{"sheet":"Suma","index":0,"n_rows":18,"n_cols":3,"rows_kept":18,"merged":[[1,0,2,0],[1,1,2,1],[1,2,2,2]]}
[]
["odwołanie","Pakiet","Nazwa"]
[]
[{"$f":"HYPERLINK(\"#'Część 01'!A1\",\"przejdz do\")","v":"przejdz do"},{"$f":"'Część 01'!$A$4","v":"Część 01"},{"$f":"'Część 01'!$A$5","v":"Oscyloskop cyfrowy ręczny z rejestratorem danych"}]
[{"$f":"HYPERLINK(\"#'Część 02'!A1\",\"przejdz do\")","v":"przejdz do"},{"$f":"'Część 02'!$A$4","v":"Część 02"},{"$f":"'Część 02'!$A$5","v":"Kolumny chromatograficzne do HPLC - pr. wody i kosmetyków, witamin"}]
[{"$f":"HYPERLINK(\"#'Część 03'!A1\",\"przejdz do\")","v":"przejdz do"},{"$f":"'Część 03'!$A$4","v":"Część 03"},{"$f":"'Część 03'!$A$5","v":"Fantom do testowania kolimacji aparatów mammograficznych"}]
[{"$f":"HYPERLINK(\"#'Część 04'!A1\",\"przejdz do\")","v":"przejdz do"},{"$f":"'Część 04'!$A$4","v":"Część 04"},{"$f":"'Część 04'!$A$5","v":"Końcówki do pipet"}]
[{"$f":"HYPERLINK(\"#'Część 05'!A1\",\"przejdz do\")","v":"przejdz do"},{"$f":"'Część 05'!$A$4","v":"Część 05"},{"$f":"'Część 05'!$A$5","v":"Minutniki"}]
[{"$f":"HYPERLINK(\"#'Część 06'!A1\",\"przejdz do\")","v":"przejdz do"},{"$f":"'Część 06'!$A$4","v":"Część 06"},{"$f":"'Część 06'!$A$5","v":"System do przechowywania mikroorganizmów w stanie zamrożonym"}]
[{"$f":"HYPERLINK(\"#'Część 07'!A1\",\"przejdz do\")","v":"przejdz do"},{"$f":"'Część 07'!$A$4","v":"Część 07"},{"$f":"'Część 07'!$A$5","v":"Waga precyzyjna"}]
[{"$f":"HYPERLINK(\"#'Część 08'!A1\",\"przejdz do\")","v":"przejdz do"},{"$f":"'Część 08'!$A$4","v":"Część 08"},{"$f":"'Część 08'!$A$5","v":"Rejestrator temperatury z wyposażeniem"}]
[{"$f":"HYPERLINK(\"#'Część 09'!A1\",\"przejdz do\")","v":"przejdz do"},{"$f":"'Część 09'!$A$4","v":"Część 09"},{"$f":"'Część 09'!$A$5","v":"Probówki do poboru prób wirusologicznych "}]
[{"$f":"HYPERLINK(\"#'Część 10'!A1\",\"przejdz do\")","v":"przejdz do"},{"$f":"'Część 10'!$A$4","v":"Część 10"},{"$f":"'Część 10'!$A$5","v":"Lampa bakeriobójcza UV"}]
[{"$f":"HYPERLINK(\"#'Część 11'!A1\",\"przejdz do\")","v":"przejdz do"},{"$f":"'Część 11'!$A$4","v":"Część 11"},{"$f":"'Część 11'!$A$5","v":"Statyw (stojak) na  cylindry Nesslera "}]
[{"$f":"HYPERLINK(\"#'Część 12'!A1\",\"przejdz do\")","v":"przejdz do"},{"$f":"'Część 12'!$A$4","v":"Część 12"},{"$f":"'Część 12'!$A$5","v":"Urządzenie do pomiaru siły kompresji piersi (waga mammograficzna)"}]
[{"$f":"HYPERLINK(\"#'Część 13'!A1\",\"przejdz do\")","v":"przejdz do"},{"$f":"'Część 13'!$A$4","v":"Część 13"},{"$f":"'Część 13'!$A$5","v":"Pinceta do filtrów membranowych"}]
[]
[null,null,"SUMA"]

{"sheet":"Część 01","index":1,"n_rows":20,"n_cols":10,"rows_kept":20,"merged":[[0,6,0,9],[2,0,2,9],[3,0,3,9],[4,0,4,9],[6,1,8,1],[6,2,8,2],[6,3,8,3],[6,4,6,5],[6,6,8,6],[6,7,8,7],[6,8,8,8],[6,9,8,9],[7,4,8,4],[7,5,8,5],[10,1,10,8],[11,2,11,9],[12,2,12,9],[13,2,13,9],[16,2,16,9],[17,2,17,7]]}
[null,null,"AGZ.272.9.2023",{"$nulls":3},"Załącznik 1A do SWZ"]
[]
["OPIS PRZEDMIOTU ZAMÓWIENIA - KALKULACJA CENY OFERTY"]
[{"$f":"MID(CELL(\"nazwa_pliku\",A1),FIND(\"]\",CELL(\"nazwa_pliku\",A1),1)+1,100)","v":"Część 01"}]
["Oscyloskop cyfrowy ręczny z rejestratorem danych"]
[{"$f":"HYPERLINK(\"#'Suma'!A1\",\"wstecz\")","v":"wstecz"}]
[null,"L.p.","Przedmiot zamówienia","Szczegółowy opis","Opis oferowanego produktu",null,"Jednostka miary","Ilość","Cena jednostkowa brutto [zł] **","Wartość brutto [zł] "]
[{"$nulls":4},"Producent*","Nr katalogowy producenta*"]
[]
[null,"1.","Oscyloskop cyfrowy ręczny z rejestratorem danych","np. producent: Siglent \ntyp: SHS1102X \nlub produkt równoważny***\n• 2-kanałowy\n• zakres do 100 MHz\n• funkcja mulimetru TrueRMS\n• pełna izolacja kanałów\n• analizator widma FFT\n• częstotliwość próbkowania 1 GSa/s (jednokanałowo), 500 MSa/s (dwukanałowo)\n• logger próbkowania i pomiarów\n• długość zapisu do 12 Mpts\n• szybkość przechwytywania przebiegów do 100 000 wfm/s (tryb normalny) i 400 000 wfm/s (tryb sekwencyjny)\n• wyzwalanie: Edge, Slope, Pulse Width, Window, Runt, Interval, Dropout, Pattern\n• technologia SPO\n• stopień ochrony IP51\n• wyświetlacz 5.6\" TFT-LCD (640x480)\n• interfejs USB Host, USB Device\n• zasilanie akumulatorowe\n• wyposażanie zawiera przewody (zasilajcy oraz USB), baterię.\n",null,null,"szt",1,null,{"$f":"H10*I10","v":{"v":0,"d":"0.00"}}]
[null,"Cena oferty (brutto):",{"$nulls":7},{"$f":"SUM(J10:J10)","v":{"v":0,"d":"0.00"}}]
[null,"*","Należy wpisać nazwę producenta oraz numer katalogowy producenta oferowanego produktu. Niepodanie ww. danych będzie skutkować odrzuceniem oferty, chyba że dane te będą jednoznacznie wynikać z innych dokumentów dołączonych do oferty.\n"]
[null,"**","Zawiera podatek od towarów i usług (VAT) wg obowiązującej stawki oraz koszty wszystkich świadczeń niezbędnych do wykonania zamówienia, w szczególności koszty transportu, ubezpieczenia, opakowania (także kaucjonowanego) itp.\n"]
[null,"***","Wykonawca oferujący produkt innego producenta, o innym numerze katalogowym niż wskazany jako przykład zobowiązany jest dostarczyć dokumenty potwierdzające równoważność oferowanego produktu z wymaganiami przedstawionymi w tabeli w języku polskim lub angielskim. "]
[]
[null,"Wymagania dodatkowe:"]
[null,"1.","Do dostawy wymagana instrukcja obsługi w języku polskim w formie papierowej lub dostępna w formie elektronicznej w miejscu wskazanym przez wykonawcę (adres strony www) oraz karta gwarancyjna           \n"]
[null,"2.","Do dostawy wymagany certyfikat lub inny dokument potwierdzający sprawdzenie oscyloskopu przez porównanie wskazań przyrządu względem urządzenia wzorcowego w trybie oscyloskopu dla: Częstotliwości: 25 50 100Hz; Napięcie AC: 50Hz"]
[null,"3.","Wymagny okres gwarancji: min. 12 miesiecy od daty dostawy."]
[null,"4.","Miejsce dostawy:\n","WSSE Kraków  ul. Prądnicka 76, 31-202 Kraków \n"]

{"sheet":"Część 02","index":2,"n_rows":24,"n_cols":10,"rows_kept":24,"merged":[[0,8,0,9],[2,0,2,9],[3,0,3,9],[4,0,4,9],[6,1,8,1],[6,2,8,2],[6,3,8,3],[6,4,6,5],[6,6,8,6],[6,7,8,7],[6,8,8,8],[6,9,8,9],[7,4,8,4],[7,5,8,5],[16,1,16,7],[17,2,17,9],[18,2,18,9],[19,2,19,9]]}
[null,null,"AGZ.272.9.2023",{"$nulls":5},"Załącznik 1A do SWZ"]
[]
["OPIS PRZEDMIOTU ZAMÓWIENIA - KALKULACJA CENY OFERTY"]
[{"$f":"MID(CELL(\"nazwa_pliku\",A1),FIND(\"]\",CELL(\"nazwa_pliku\",A1),1)+1,100)","v":"Część 02"}]
["Kolumny chromatograficzne do HPLC - pr. wody i kosmetyków, witamin"]
[{"$f":"HYPERLINK(\"#'Suma'!A1\",\"wstecz\")","v":"wstecz"}]
[null,"L.p.","Przedmiot zamówienia","Szczegółowy opis","Opis oferowanego produktu",null,"Jednostka miary","Ilość","Cena jednostkowa brutto [zł] **","Wartość brutto [zł] "]
[{"$nulls":4},"Producent*","Nr katalogowy producenta*"]
[]
[null,"1.","Kolumna analityczna do chromatografii cieczowej                 \n","np. producent: Thermo Scientific \nnr kat. 25005-254630  \nlub produkt równoważny***\n• kolumna Hypersil GOLD C18;\n• wymiary: 4,6 mm x 250 mm;\n• kształt i wielkość ziarna w wypełnieniu: sferyczny - 5 µm;\n• szerokość porów: 175 Å;\n• zawartość węgla: 11 %\n• zakres pH 1-11.\n",null,null,"szt.",1,null,{"$f":"H10*I10","v":{"v":0,"d":"0.00"}}]
[null,"2.","Prekolumna \n","np. producent: Thermo Scientific\nnr kat. 25005-014001 \nlub produkt równoważny***\n• kolumna ochronna Hypersil Gold pasująca do kolumny z poz 1;\n• wymiary: 10 mm x 4 mm; \n• kształt i wielkość ziarna w wypełnieniu: sferyczny - 5 µm.\n",null,null,"op.=\n4 szt.",1,null,{"v":0,"d":"0.00"}]
[null,"3.","Kolumna chromatograficzna\n","np. Producent: Restek     \nnr. kat. 9219463-700 \nlub produkt równoważny***\n• Kolumna analityczna Pinnacle II PAH lub równoważny*, \n•  wielkość porów 110 Å, \n• długość: 150mm, \n• średnica wewnętrzna: 3,2mm, \n• wielkość ziarna: 4μm.\n",null,null," szt.",1,null,{"v":0,"d":"0.00"}]
[null,"4.","Prekolumna    \n","np. producent: Restek       \nnr. kat 921950210  \nlub produkt równoważny***\n• kolumna ochronna Pinnacle II PAH           \n• wymiary: 10 mm x 4 mm.\n",null,null,"op. = \n3szt.",1,null,{"$f":"H13*I13","v":{"v":0,"d":"0.00"}}]
[null,"5.","Kolumna analityczna do chromatografii cieczowej                 \n","np. producent: Macherey-Nagel\nnr kat. 760202.46 \nlub produkt równoważny***\n• kolumna NUCLEODUR C18 Pyramid;\n• wymiary: 250x4.6 mm;\n• kształt ziaren: sferyczny;\n• wielkość ziaren: 5 µm;\n• szerokość porów: 110 Å;\n• powierzchnia właściwa (wg BET): 340 m2/g;\n• zakres pH 1-9.",null,null,"szt.",1,null,{"v":0,"d":"0.00"}]
[null,"6.","Kolumna ochronna (prekolumna)\n","np. producent: Macherey-Nagel\nnr kat. 761917.30 \nlub produkt równoważny***\n• kolumna ochronna NUCLEODUR C18 Pyramid;\n• wymiary: 4x3 mm;\n• wielkość ziaren: 5 µm;\n• zakres pH 1-9;\n• pasująca do kolumny analitycznej z pozycji nr 5.",null,null,"op.=\n3 szt.",1,null,{"$f":"H15*I15","v":{"v":0,"d":"0.00"}}]
[null,"7.","Kolumna analityczna do chromatografii cieczowej   ","np. producent Supelco                                       nr kat.504971                                                    lub produkt równoważny***                        \n• kolumna Discovery® C18 ;\n• wymiary:  25 cm x 4,6  mm;\n• wielkość ziarna w wypełnieniu: - 5 µm,\n• zakres pH 2,0 - 7,5.         \n                          ",null,null,"szt.",1,null,{"$f":"H16*I16","v":{"v":0,"d":"0.00"}}]
[null,"Cena oferty (brutto):",{"$nulls":7},{"$f":"SUM(J10:J16)","v":{"v":0,"d":"0.00"}}]
[null,"*","Należy wpisać nazwę producenta oraz numer katalogowy producenta oferowanego produktu. Niepodanie ww. danych będzie skutkować odrzuceniem oferty, chyba że dane te będą jednoznacznie wynikać z innych dokumentów dołączonych do oferty."]
[null,"**","Zawiera podatek od towarów i usług (VAT) wg obowiązującej stawki oraz koszty wszystkich świadczeń niezbędnych do wykonania zamówienia, w szczególności koszty transportu, ubezpieczenia, opakowania (także kaucjonowanego) itp."]
[null,"***","Wykonawca oferujący produkt innego producenta, o innym numerze katalogowym niż wskazany jako przykład zobowiązany jest dostarczyć dokumenty potwierdzające równoważność oferowanego produktu z wymaganiami przedstawionymi w tabeli w języku polskim lub angielskim. "]
[]
[null,"Wymagania dodatkowe:"]
[null,"1.","Miejsce dostawy:","WSSE Kraków  ul. Prądnicka 76, 31-202 Kraków  - dla poz .  1-6"]
[{"$nulls":3},"WSSE Oddział Laboratoryjny w Tarnowie  ul. Mościckiego 10,  33-100 Tarnów -  - dla poz. 7"]

{"sheet":"Część 03","index":3,"n_rows":17,"n_cols":10,"rows_kept":17,"merged":[[0,6,0,9],[2,0,2,9],[3,0,3,9],[4,0,4,9],[6,1,8,1],[6,2,8,2],[6,3,8,3],[6,4,6,5],[6,6,8,6],[6,7,8,7],[6,8,8,8],[6,9,8,9],[7,4,8,4],[7,5,8,5],[10,1,10,8],[11,2,11,9],[12,2,12,9]]}
[null,null,"AGZ.272.9.2023",{"$nulls":3},"Załącznik 1A do SWZ"]
[]
["OPIS PRZEDMIOTU ZAMÓWIENIA - KALKULACJA CENY OFERTY"]
[{"$f":"MID(CELL(\"nazwa_pliku\",A1),FIND(\"]\",CELL(\"nazwa_pliku\",A1),1)+1,100)","v":"Część 03"}]
["Fantom do testowania kolimacji aparatów mammograficznych"]
[{"$f":"HYPERLINK(\"#'Suma'!A1\",\"wstecz\")","v":"wstecz"}]
[null,"L.p.","Przedmiot zamówienia","Szczegółowy opis","Opis oferowanego produktu",null,"Jednostka miary","Ilość","Cena jednostkowa brutto [zł] **","Wartość brutto [zł] "]
[{"$nulls":4},"Producent*","Nr katalogowy producenta*"]
[]
[null,"1.","Fantom do testowania kolimacji aparatów mammograficznych","• do testów specjalistycznych w mammografii;\n• wymiary: 300±2 mm x 240 ± 2 mm;\n• w zestawie dwa kołki o wysokości: 1,9 cm oraz 2, 4 cm.",null,null,"szt",1,null,{"$f":"H10*I10","v":{"v":0,"d":"0.00"}}]
[null,"Cena oferty (brutto):",{"$nulls":7},{"$f":"SUM(J10:J10)","v":{"v":0,"d":"0.00"}}]
[null,"*","Należy wpisać nazwę producenta oraz numer katalogowy producenta oferowanego produktu. Niepodanie ww. danych będzie skutkować odrzuceniem oferty, chyba że dane te będą jednoznacznie wynikać z innych dokumentów dołączonych do oferty."]
[null,"**","Zawiera podatek od towarów i usług (VAT) wg obowiązującej stawki oraz koszty wszystkich świadczeń niezbędnych do wykonania zamówienia, w szczególności koszty transportu, ubezpieczenia, opakowania (także kaucjonowanego) itp."]
[]
[null,"Wymagania dodatkowe:"]
[null,"1.","Do dostawy wymagana instrukcja obsługi w języku polskim oraz deklaracja CE w języku polskim lub angielskim."]
[null,"2.","Miejsce dostawy:\n","WSSE Kraków  ul. Prądnicka 76, 31-202 Kraków \n"]

{"sheet":"Część 04","index":4,"n_rows":34,"n_cols":10,"rows_kept":34,"merged":[[0,6,0,9],[2,0,2,9],[3,0,3,9],[4,0,4,9],[6,1,8,1],[6,2,8,2],[6,3,8,3],[6,4,6,5],[6,6,8,6],[6,7,8,7],[6,8,8,8],[6,9,8,9],[7,4,8,4],[7,5,8,5],[24,1,24,8],[25,2,25,9],[26,2,26,9],[27,2,27,9],[30,2,30,9],[33,3,33,9]]}
[null,null,"AGZ.272.9.2023",{"$nulls":3},"Załącznik 1A do SWZ"]
[]
["OPIS PRZEDMIOTU ZAMÓWIENIA - KALKULACJA CENY OFERTY"]
[{"$f":"MID(CELL(\"nazwa_pliku\",A1),FIND(\"]\",CELL(\"nazwa_pliku\",A1),1)+1,100)","v":"Część 04"}]
["Końcówki do pipet"]
[{"$f":"HYPERLINK(\"#'Suma'!A1\",\"wstecz\")","v":"wstecz"}]
[null,"L.p.","Przedmiot zamówienia","Szczegółowy opis","Opis oferowanego produktu",null,"Jednostka miary","Ilość","Cena jednostkowa brutto [zł] **","Wartość brutto [zł] "]
[{"$nulls":4},"Producent*","Nr katalogowy producenta*"]
[]
[null,"1.","Końcówki do pipet automatycznych ","• zastosowanie: do analiz mikrobiologicznych \"in vitro\";\n• pojemność do 200 μl;\n• końcówki typu Eppendorf, uniwersalne żółte lub białe,\n• kompatybilne z pipetą mL-Pette-V i pipetą typu Eppendorf \n",null,null,"op. = 1000szt.",70,null,{"$f":"H10*I10","v":{"v":0,"d":"0.00"}}]
[null,"2.","Końcówki do pipet automatycznych \n","• zastosowanie: do analiz mikrobiologicznych \"in vitro\";\n• pojemność do 200 μl;\n• końcówki typu Eppendorf;\n• kompatybilne z pipetą mL-Pette-V i pipetą typu Eppendorf.\n",null,null,"op. = 1000szt.",20,null,{"$f":"H11*I11","v":{"v":0,"d":"0.00"}}]
[null,"3.","Końcówki do pipet automatycznych","• Zastosowanie : do analiz mikrobiologicznych/wirusologicznych;          \n• końcówki o pojemności do 200µl (żółte),    \n• pasujące do pipet Lab-Mate HTML,                                                               • koncówki do wielokrotnej sterylizacji.       \n",null,null,"op. = \n1000 szt",1,null,{"$f":"H12*I12","v":{"v":0,"d":"0.00"}}]
[null,"4.","Końcówki do pipet automatycznych \n","• zastosowanie: do analiz mikrobiologicznych;\n• objętość 200 µl;\n• kompatybilne z pipetą HTL LABMATE pro;\n• do wielokrotnej sterylizacji;\n• końcówki żółte typu GILSON;\n• pasujące do pudelka z poz. 14.\n",null,null,"op. = 1000szt.",2,null,{"$f":"H13*I13","v":{"v":0,"d":"0.00"}}]
[null,"5.","Końcówki do pipety automatycznej\n","• kompatybilne z pipetą HTL LAB MATE o pojemności 1000 - 10000 µl;\n• pojemność końcówki: 1 -10 ml;\n• bezbarwne.\n",null,null,"op.=\n100 szt.",4,null,{"v":0,"d":"0.00"}]
[null,"6.","Końcówki do pipet automatycznych \n","• zastosowanie: do analiz mikrobiologicznych;\n• objętość 100-1000 µl;\n• kompatybilne z pipetą HTL LABMATE pro;\n• do wielokrotnej sterylizacji;\n• końcówki niebieskie lub bezbarwne typu GILSON;\n• pasujące do pudełka z poz. 15.",null,null,"op. = 250szt.",16,null,{"$f":"H15*I15","v":{"v":0,"d":"0.00"}}]
[null,"7.","Końcówki do pipet automatycznych \n\n","np. producent: ULPLAST\nnr kat. 85011\nlub produkt równoważny***\n• zastosowanie: do analiz mikrobiologicznych;\n• objętość 100-1000 µl; \n• do wielokrotnej sterylizacji;\n• przezroczyste, formowane pierścienie, autoklawowalne do 121℃, \n• końcówki pakowane w worki;\n• OMNITIP\n",null,null,"op. = 250szt.",40,null,{"v":0,"d":"0.00"}]
[null,"8.","Koncówki do pipety automatycznej","• zastosowanie: do analiz mikrobiologicznych;\n• objętość 10 ml;\n• do wielokrotnej sterylizacji;\n• końcówki pakowane w worki.\n• kompatybilne z pipetami BRAND\n",null,null,"op. = \n200 szt.",2,null,{"v":0,"d":"0.00"}]
[null,"9.","Końcówki do pipet automatycznych  ","• zastosowanie: do analiz mikrobiologicznych;\n• objętość max. od 1000 µl\n• do wielokrotnej sterylizacji;\n• kompatybilne z pipetami Transferpette;\n• końcówki pakowane w worki;\n• długość końcówki max. 7cm.\n• krótki kołnierz -  max. 7mm.\n",null,null,"op. = 1000szt.",3,null,{"v":0,"d":"0.00"}]
[null,"10.","Końcówki do pipet automatycznych \n","• końcówki do pipety BIOHIT i Sartorius pojemność: 100-5000µl;\n• typ: standardowe, długie, niesterylne.\n",null,null,"op. = 100szt.",3,null,{"v":0,"d":"0.00"}]
[null,"11.","Końcówki do pipet automatycznych typ Eppendorf","• zastosowanie: do analiz mikrobiologicznych;\n• objętość max. od 1000 µl\n• do wielokrotnej sterylizacji;\n• kompatybilne z pipetami HTL, Transferpette i Lab Mate;\n• końcówki pakowane w worki;\n• długość końcówki - 7 ± 0,1 cm, \n• krótki kołnierz - max. 7 mm.\n",null,null,"op. = 1000szt.",7,null,{"v":0,"d":"0.00"}]
[null,"12.","Koncówki do pipety automatycznej","• zastosowanie: do analiz mikrobiologicznych;\n• objętość 10 ml;\n• do wielokrotnej sterylizacji;\n• końcówki pakowane w worki.\n• kompatybilne z pipetami HTL, Transferpette i Lab Mate;\n",null,null,"op. = \n100 szt.",30,null,{"v":0,"d":"0.00"}]
[null,"13.","Pudełko do końcówek do pipet automatycznych","• pojemnik z polipropylenu (PP);\n• Na 96 sztuk końcówek 1000µl;\n• do wielokrotnej sterylizacji;\n",null,null,"szt.",4,null,{"$f":"H22*I22","v":{"v":0,"d":"0.00"}}]
[null,"14.","Pudełko na końcóweki do pipet automatycznych","• pojemnik z polipropylenu (PP);\n• na 96 sztuk końcówek do pipet o poj. 200 µl;\n• do wielokrotnej sterylizacji;\n• kompatybilne z końcówkami z poz. 4\n",null,null,"szt.",2,null,{"$f":"H23*I23","v":{"v":0,"d":"0.00"}}]
[null,"15.","Pudełko na końcóweki do pipet automatycznych","• pojemnik z polipropylenu (PP);\n• na 96 sztuk końcówek do pipet o poj. 1000 µl;\n• do wielokrotnej sterylizacji;\n• kompatybilne z końcówkami z poz. 6\n",null,null,"szt.",2,null,{"$f":"H24*I24","v":{"v":0,"d":"0.00"}}]
[null,"Cena oferty (brutto):",{"$nulls":7},{"$f":"SUM(J10:J24)","v":{"v":0,"d":"0.00"}}]
[null,"*","Należy wpisać nazwę producenta oraz numer katalogowy producenta oferowanego produktu. Niepodanie ww. danych będzie skutkować odrzuceniem oferty, chyba że dane te będą jednoznacznie wynikać z innych dokumentów dołączonych do oferty."]
[null,"**","Zawiera podatek od towarów i usług (VAT) wg obowiązującej stawki oraz koszty wszystkich świadczeń niezbędnych do wykonania zamówienia, w szczególności koszty transportu, ubezpieczenia, opakowania (także kaucjonowanego) itp."]
[null,"***","Wykonawca oferujący produkt innego producenta, o innym numerze katalogowym niż wskazany jako przykład zobowiązany jest dostarczyć dokumenty potwierdzające równoważność oferowanego produktu z wymaganiami przedstawionymi w tabeli w języku polskim lub angielskim. Wymienione dokumenty nie muszą potwierdzać zastosowania."]
[]
[null,"Wymagania dodatkowe:"]
[null,"1.","Do oferty wymagane dokumenty potwierdzające jakość produktu w języku polskim lub angielskim w formie papierowej (np. kserokopia kart katalogowych)."]
[null,"2.","Miejsce dostawy:  \n","WSSE Krakowie  ul. Prądnicka 76, 31-202 Kraków - dla poz. 1, 3-6, 11, 12, 14, 15"]
[{"$nulls":3},"WSSE Oddział Laboratoryjny w Tarnowie  ul. Mościckiego 10,  33-100 Tarnów - dla poz. 2, 9, 10 "]
[{"$nulls":3},"WSSE Oddział Laboratoryjny w Wadowicach  ul. Teatralna 2, 34-100 Wadowice - Dla poz. 7, 8, 13\n"]

{"sheet":"Część 05","index":5,"n_rows":19,"n_cols":10,"rows_kept":19,"merged":[[0,6,0,9],[2,0,2,9],[3,0,3,9],[4,0,4,9],[6,1,8,1],[6,2,8,2],[6,3,8,3],[6,4,6,5],[6,6,8,6],[6,7,8,7],[6,8,8,8],[6,9,8,9],[7,4,8,4],[7,5,8,5],[11,1,11,8],[12,2,12,9],[13,2,13,9]]}
[null,null,"AGZ.272.9.2023",{"$nulls":3},"Załącznik 1A do SWZ"]
[]
["OPIS PRZEDMIOTU ZAMÓWIENIA - KALKULACJA CENY OFERTY"]
[{"$f":"MID(CELL(\"nazwa_pliku\",A1),FIND(\"]\",CELL(\"nazwa_pliku\",A1),1)+1,100)","v":"Część 05"}]
["Minutniki"]
[{"$f":"HYPERLINK(\"#'Suma'!A1\",\"wstecz\")","v":"wstecz"}]
[null,"L.p.","Przedmiot zamówienia","Szczegółowy opis","Opis oferowanego produktu",null,"Jednostka miary","Ilość","Cena jednostkowa brutto [zł] **","Wartość brutto [zł] "]
[{"$nulls":4},"Producent*","Nr katalogowy producenta*"]
[]
[null,"1.","Minutnik","• elektroniczny;\n• jednokanałowy;\n• funkcja alarmu po skończeniu odliczania\n• pojemność timera: 99 min 59 s,\n• rozdzielczość: 1 sekunda;\n• czytelny wyświetlacz LCD, duże cyfry;\n• z magnesem, klipsem i podstawką.\n• bateria w zestawie\n",null,null,"szt.",4,null,{"$f":"H10*I10","v":{"v":0,"d":"0.00"}}]
[null,"2.","Minutnik\n","• elektroniczny;\n• jednokanałowy;\n• funkcja alarmu po skończeniu odliczania\n• pojemność timera: 99 min 59 s,\n• rozdzielczość: 1 sekunda;\n• czytelny wyświetlacz LCD, duże cyfry;\n• z magnesem, klipsem i podstawką.\n• bateria w zestawie\n",null,null,"szt.",3,null,{"$f":"H11*I11","v":{"v":0,"d":"0.00"}}]
[null,"Cena oferty (brutto):",{"$nulls":7},{"$f":"SUM(J10:J11)","v":{"v":0,"d":"0.00"}}]
[null,"*","Należy wpisać nazwę producenta oraz numer katalogowy producenta oferowanego produktu. Niepodanie ww. danych będzie skutkować odrzuceniem oferty, chyba że dane te będą jednoznacznie wynikać z innych dokumentów dołączonych do oferty."]
[null,"**","Zawiera podatek od towarów i usług (VAT) wg obowiązującej stawki oraz koszty wszystkich świadczeń niezbędnych do wykonania zamówienia, w szczególności koszty transportu, ubezpieczenia, opakowania (także kaucjonowanego) itp."]
[]
[null,"Wymagania dodatkowe:"]
[null,"1.","Wymagany okres gwarancji: min. 12 miesięcy od daty dostawy."]
[null,"2.","Do dostawy wymagana instrukcja obsługi w języku polskim i karta gwarancyjna."]
[null,"3.","Miejsce dostawy: \n","WSSE Kraków  ul. Prądnicka 76, 31-202 Kraków \n"]

{"sheet":"Część 06","index":6,"n_rows":21,"n_cols":10,"rows_kept":21,"merged":[[0,6,0,9],[2,0,2,9],[3,0,3,9],[4,0,4,9],[6,1,8,1],[6,2,8,2],[6,3,8,3],[6,4,6,5],[6,6,8,6],[6,7,8,7],[6,8,8,8],[6,9,8,9],[7,4,8,4],[7,5,8,5],[12,1,12,8],[13,2,13,9],[14,2,14,9],[17,2,17,9],[18,2,18,9]]}
[null,null,"AGZ.272.9.2023",{"$nulls":3},"Załącznik 1A do SWZ"]
[]
["OPIS PRZEDMIOTU ZAMÓWIENIA - KALKULACJA CENY OFERTY"]
[{"$f":"MID(CELL(\"nazwa_pliku\",A1),FIND(\"]\",CELL(\"nazwa_pliku\",A1),1)+1,100)","v":"Część 06"}]
["System do przechowywania mikroorganizmów w stanie zamrożonym"]
[{"$f":"HYPERLINK(\"#'Suma'!A1\",\"wstecz\")","v":"wstecz"}]
[null,"L.p.","Przedmiot zamówienia","Szczegółowy opis","Opis oferowanego produktu",null,"Jednostka miary","Ilość","Cena jednostkowa brutto [zł] **","Wartość brutto [zł] "]
[{"$nulls":4},"Producent*","Nr katalogowy producenta*"]
[]
[null,"1.","System do przechowywania mikroorganizmów w stanie zamrożonym ","• zastosowanie: do długotrwałego przechowywania szczepów bakteryjnych w temperaturze poniżej - 70 0C;\n• skład zestaw:                                                                                         \n  - min. 80 sztuk sterylnych fiolek z płynem odżywczym;\n  - Mix kolorów zakrętek/koralików.  \n",null,null," zestaw",1,null,{"v":0,"d":"0.00"}]
[null,"2.","Kriopudełka z PC","• pudełko na 25 miejsc w rzędach, 5x5;                                    • wyposażone w zdejmowaną pokrywę.      \n                ",null,null,"szt.",5,null,{"v":0,"d":"0.00"}]
[null,"3.","Pudełko chłodzące \nCryo-Safe™ Cold-Box","• Wkład przeznaczony na 12 probówek o poj. 1,5 ml\n• Wnętrze pudełka wypełnione specjalnym materiałem zapewniającym utrzymanie niskiej temperatury;\n• Po wyjęciu z zamrażarki przez ok. 1,5h utrzymuje się temperatura -15°C.\n",null,null,"szt.",1,null,{"v":0,"d":"0.00"}]
[null,"Cena oferty (brutto):",{"$nulls":7},{"$f":"SUM(J10:J12)","v":{"v":0,"d":"0.00"}}]
[null,"*","Należy wpisać nazwę producenta oraz numer katalogowy producenta oferowanego produktu. Niepodanie ww. danych będzie skutkować odrzuceniem oferty, chyba że dane te będą jednoznacznie wynikać z innych dokumentów dołączonych do oferty."]
[null,"**","Zawiera podatek od towarów i usług (VAT) wg obowiązującej stawki oraz koszty wszystkich świadczeń niezbędnych do wykonania zamówienia, w szczególności koszty transportu, ubezpieczenia, opakowania (także kaucjonowanego) itp."]
[]
[null,"Wymagania dodatkowe:"]
[null,"1.","Dla poz. 1 do dostawy wymagany certyfikat jakości /świadectwo kontroli jakości lub inny dokument potwierdzający spełnienie wymagań w języku polskim lub angielskim w formie papierowej lub dostępny w formie elektronicznej w miejscu wskazanym przez wykonawcę (adres strony www). "]
[null,"2.","Wymagany okres ważności:  min. 12 miesięcy od daty dostawy. "]
[null,"3.","Miejsce dostawy:\n","WSSE Kraków  ul. Prądnicka 76, 31-202 Kraków - dla poz. 1, 2\n"]
[{"$nulls":3},"WSSE Oddział Laboratoryjny w Wadowicach,ul.Teatralna 2,34-100 Wadowice - poz. 3"]

{"sheet":"Część 07","index":7,"n_rows":19,"n_cols":10,"rows_kept":19,"merged":[[0,6,0,9],[2,0,2,9],[3,0,3,9],[4,0,4,9],[6,1,8,1],[6,2,8,2],[6,3,8,3],[6,4,6,5],[6,6,8,6],[6,7,8,7],[6,8,8,8],[6,9,8,9],[7,4,8,4],[7,5,8,5],[10,1,10,8],[11,2,11,9],[12,2,12,9],[13,2,13,9],[16,2,16,9],[17,2,17,9]]}
[null,null,"AGZ.272.9.2023",{"$nulls":3},"Załącznik 1A do SWZ"]
[]
["OPIS PRZEDMIOTU ZAMÓWIENIA - KALKULACJA CENY OFERTY"]
[{"$f":"MID(CELL(\"nazwa_pliku\",A1),FIND(\"]\",CELL(\"nazwa_pliku\",A1),1)+1,100)","v":"Część 07"}]
["Waga precyzyjna"]
[{"$f":"HYPERLINK(\"#'Suma'!A1\",\"wstecz\")","v":"wstecz"}]
[null,"L.p.","Przedmiot zamówienia","Szczegółowy opis","Opis oferowanego produktu",null,"Jednostka miary","Ilość","Cena jednostkowa brutto [zł] **","Wartość brutto [zł] "]
[{"$nulls":4},"Producent*","Nr katalogowy producenta*"]
[]
[null,"1.","Waga precyzyjna","• klasy II\n• adiustacja wewnętrzna;\n• działka elementarna d: 0,01g;                                              \n• Zasilacz sieciowy zew.;                                             \n• legalizacja WE wagi;                                                   \n• temperatura pracy: +10°C do +40°C;\n• max obciązenie 2500g;  \n• bez szklanej obudowy.                              ",null,null,"szt",1,null,{"$f":"H10*I10","v":{"v":0,"d":"0.00"}}]
[null,"Cena oferty (brutto):",{"$nulls":7},{"$f":"SUM(J10:J10)","v":{"v":0,"d":"0.00"}}]
[null,"*","Należy wpisać nazwę producenta oraz numer katalogowy producenta oferowanego produktu. Niepodanie ww. danych będzie skutkować odrzuceniem oferty, chyba że dane te będą jednoznacznie wynikać z innych dokumentów dołączonych do oferty."]
[null,"**","Zawiera podatek od towarów i usług (VAT) wg obowiązującej stawki oraz koszty wszystkich świadczeń niezbędnych do wykonania zamówienia, w szczególności koszty transportu, ubezpieczenia, opakowania (także kaucjonowanego) itp."]
[]
[null,"Wymagania dodatkowe:"]
[]
[null,"1.","Do dostawy wymagane świadectwo legalizacji pionowej i wzorcowania zapewniające zachowanie spójności pomiarowej wystawione przez akredytowane laboratorium. Wzorcowanie wykonane w siedmiu punktach obciążenia:1g, 5g, 10g, 20g, 25g, 50g, 620g. CMC=7,5*10-4% (procentowy udział w wartości  mierzonej). Niepewność podana przy poziomie ufności 95% i współczynnik rozszerzenia k=2."]
[null,"2.","Do dostawy wymagana instrukcja obsługi w języku polskim w formie papierowej lub dostępna w formie elektronicznej w miejscu wskazanym przez wykonawcę (adres strony www) i karta gwarancyjna."]
[null,"3.","Miejsce dostawy:\n","WSSE Oddział Laboratoryjny w Wadowicach,ul.Teatralna 2,34-100 Wadowice "]

{"sheet":"Część 08","index":8,"n_rows":22,"n_cols":10,"rows_kept":22,"merged":[[0,6,0,9],[2,0,2,9],[3,0,3,9],[4,0,4,9],[6,1,8,1],[6,2,8,2],[6,3,8,3],[6,4,6,5],[6,6,8,6],[6,7,8,7],[6,8,8,8],[6,9,8,9],[7,4,8,4],[7,5,8,5],[14,1,14,8],[15,2,15,9],[16,2,16,9],[19,2,19,9]]}
[null,null,"AGZ.272.9.2023",{"$nulls":3},"Załącznik 1A do SWZ"]
[]
["OPIS PRZEDMIOTU ZAMÓWIENIA - KALKULACJA CENY OFERTY"]
[{"$f":"MID(CELL(\"nazwa_pliku\",A1),FIND(\"]\",CELL(\"nazwa_pliku\",A1),1)+1,100)","v":"Część 08"}]
["Rejestrator temperatury z wyposażeniem"]
[{"$f":"HYPERLINK(\"#'Suma'!A1\",\"wstecz\")","v":"wstecz"}]
[null,"L.p.","Przedmiot zamówienia","Szczegółowy opis","Opis oferowanego produktu",null,"Jednostka miary","Ilość","Cena jednostkowa brutto [zł] **","Wartość brutto [zł] "]
[{"$nulls":4},"Producent*","Nr katalogowy producenta*"]
[]
[null,"1.","Rejestrator temperatury \n","np. producent: Delta OHM\ntyp: HD32.7\nlub produkt równoważny***\n• przenośny, precyzyjny rejestrator temperatury\n• ilość kanałów pomiarowych: 8;\n• zakres pomiarowy: -200…+650°C;\n• rozdzielczość: 0.01°C w zakresie -199,99…+199,99°C (0,1°C w pozostałym zakresie);\n• wejścia do współpracy z sondami z modułem SICRAM;\n• Zapis wartości MAX, MIN i średnich.\n• interwał zaspisu:1, 5, 15, 30s, 1, 2, 5, 10, 15, 30 min lub 1 godzina;\n• pamięć: 96 000 próbek na kanał;\n• wyświetlacz: LCD (jednoczesne wyświetlanie pomiarów ze wszystkich kanałów);\n• interfejs szeregowy RS232C i USB1.1-2.0;\n• zasilanie: 4 baterie 1,5V typu C (lub zewnętrzny zasilacz);\n• w komplecie z oprogramowaniem Deltalog 9.\n",null,null,"szt.",1,null,{"$f":"H10*I10","v":{"v":0,"d":"0.00"}}]
[null,"2.","Sonda temperatury Pt100\n ","np. producent: Delta OHM\ntyp: TP472I\nlub produkt równoważny***\n• sonda zanurzeniowa wyposażona w moduł SICRAM\n• temperatura pracy sondy: -196…500°C\n• długość sondy: 300mm\n• przewód podłączeniowy: 2m\n",null,null,"szt.",5,null,{"$f":"H11*I11","v":{"v":0,"d":"0.00"}}]
[null,"3.","Zasilacz sieciowy ","Np. producent: Delta OHM\ntyp: SWD10\nlub produkt równoważny***\n• Zasilacz sieciowy\n",null,null,"szt.",1,null,{"v":0,"d":"0.00"}]
[null,"4.","Walizka transportowa\n","np. producent: Delta OHM\ntyp: BAG32.2\nlub produkt równoważny***\n• Walizka transportowa dla HD32.7 i wyposażenia.",null,null,"szt.",1,null,{"v":0,"d":"0.00"}]
[null,"5.","Kabel komunikacyjny\n","np. producent: Delta OHM\ntyp: CP22\nlub produkt równoważny***\n• Kabel komunikacyjny USB \n",null,null,"szt.",1,null,{"v":0,"d":"0.00"}]
[null,"Cena oferty (brutto):",{"$nulls":7},{"$f":"SUM(J10:J14)","v":{"v":0,"d":"0.00"}}]
[null,"*","Należy wpisać nazwę producenta oraz numer katalogowy producenta oferowanego produktu. Niepodanie ww. danych będzie skutkować odrzuceniem oferty, chyba że dane te będą jednoznacznie wynikać z innych dokumentów dołączonych do oferty."]
[null,"**","Zawiera podatek od towarów i usług (VAT) wg obowiązującej stawki oraz koszty wszystkich świadczeń niezbędnych do wykonania zamówienia, w szczególności koszty transportu, ubezpieczenia, opakowania (także kaucjonowanego) itp."]
[]
[null,"Wymagania dodatkowe:"]
[null,"1.","Do dostawy wymagana instrukcja obslugi w języku polskim oraz karta gwarancyjna.\n"]
[null,"2.","Wymagany okres gwarancji min. 12 miesięcy od daty dostawy."]
[null,"3.","Miejsce dostawy:\n","WSSE Kraków  ul. Prądnicka 76, 31-202 Kraków \n"]

{"sheet":"Część 09","index":9,"n_rows":18,"n_cols":10,"rows_kept":18,"merged":[[0,6,0,9],[2,0,2,9],[3,0,3,9],[4,0,4,9],[6,1,8,1],[6,2,8,2],[6,3,8,3],[6,4,6,5],[6,6,8,6],[6,7,8,7],[6,8,8,8],[6,9,8,9],[7,4,8,4],[7,5,8,5],[10,1,10,8],[11,2,11,9],[12,2,12,9]]}
[null,null,"AGZ.272.9.2023",{"$nulls":3},"Załącznik 1A do SWZ"]
[]
["OPIS PRZEDMIOTU ZAMÓWIENIA - KALKULACJA CENY OFERTY"]
[{"$f":"MID(CELL(\"nazwa_pliku\",A1),FIND(\"]\",CELL(\"nazwa_pliku\",A1),1)+1,100)","v":"Część 09"}]
["Probówki do poboru prób wirusologicznych "]
[{"$f":"HYPERLINK(\"#'Suma'!A1\",\"wstecz\")","v":"wstecz"}]
[null,"L.p.","Przedmiot zamówienia","Szczegółowy opis","Opis oferowanego produktu",null,"Jednostka miary","Ilość","Cena jednostkowa brutto [zł] **","Wartość brutto [zł] "]
[{"$nulls":4},"Producent*","Nr katalogowy producenta*"]
[]
[null,"1.","Jednorazowe probówki do poboru prób wirusologicznych medium stabilizującym wirusy","• probówki z podłożem Hanksa do transportu prób wirusologicznych; \n• do pobierania, transportu i zabezpieczenia próbki do badania wirusów metodą łańcuchowej reakcji polimerazy (PCR);                                      \n• do hodowli wirusów bez wpływu na aktywność wirusa i jego zdolności do infekcji;                                                  • do poboru prób z nosogardła i gardła;               • ok 3ml medium transportowego stabilizującego wirusa i uniemożliwiającym rozwój bakterii i grzybów;                                                               • probówka plastikowa z zakretką;                         • z dołączonymi sterylnymi wymazówkami z tworzywa sztucznego, łatwo dającymi się odłamać;                                                                • możliwość przechowywania w temperaturze pokojowej.           \n                                               ",null,null,"op. = 50 szt.",2,null,{"$f":"H10*I10","v":{"v":0,"d":"0.00"}}]
[null,"Cena oferty (brutto):",{"$nulls":7},{"$f":"SUM(J10:J10)","v":{"v":0,"d":"0.00"}}]
[null,"*","Należy wpisać nazwę producenta oraz numer katalogowy producenta oferowanego produktu. Niepodanie ww. danych będzie skutkować odrzuceniem oferty, chyba że dane te będą jednoznacznie wynikać z innych dokumentów dołączonych do oferty."]
[null,"**","Zawiera podatek od towarów i usług (VAT) wg obowiązującej stawki oraz koszty wszystkich świadczeń niezbędnych do wykonania zamówienia, w szczególności koszty transportu, ubezpieczenia, opakowania (także kaucjonowanego) itp."]
[]
[null,"Wymagania dodatkowe:"]
[null,"1.","Produkt musi być wyrobem medycznym lub wyrobem do diagnostyki in vitro w rozumieniu ustawy z dnia 07 kwietnia 2022 r. o wyrobach medycznych."]
[null,"2.","Termin ważności: min. 24 miesiące od daty podpisania umowy."]
[null,"3.","Miejsce dostawy:\n","WSSE Krakowie  ul. Prądnicka 76, 31-202 Kraków "]

{"sheet":"Część 10","index":10,"n_rows":18,"n_cols":10,"rows_kept":18,"merged":[[0,6,0,9],[2,0,2,9],[3,0,3,9],[4,0,4,9],[6,1,8,1],[6,2,8,2],[6,3,8,3],[6,4,6,5],[6,6,8,6],[6,7,8,7],[6,8,8,8],[6,9,8,9],[7,4,8,4],[7,5,8,5],[10,1,10,8],[11,2,11,9],[12,2,12,9],[15,2,15,9]]}
[null,null,"AGZ.272.9.2023",{"$nulls":3},"Załącznik 1A do SWZ"]
[]
["OPIS PRZEDMIOTU ZAMÓWIENIA - KALKULACJA CENY OFERTY"]
[{"$f":"MID(CELL(\"nazwa_pliku\",A1),FIND(\"]\",CELL(\"nazwa_pliku\",A1),1)+1,100)","v":"Część 10"}]
["Lampa bakeriobójcza UV"]
[{"$f":"HYPERLINK(\"#'Suma'!A1\",\"wstecz\")","v":"wstecz"}]
[null,"L.p.","Przedmiot zamówienia","Szczegółowy opis","Opis oferowanego produktu",null,"Jednostka miary","Ilość","Cena jednostkowa brutto [zł] **","Wartość brutto [zł] "]
[{"$nulls":4},"Producent*","Nr katalogowy producenta*"]
[]
[null,"1.","Lampa bakeriobójcza UV","•  lampa bakteriobójcza bezpośredniego działania,  naścienna, wyposażona w mocowania do ściany lub sufitu;                  \n • element emitujący promieniowanie UV-C: klasa szczelności IP65 (pyłoszczelna, kroploszczelna);                                          \n• wyposażona w dwie świetlówki o mocy 30 W;                                                             \n• dezynfekowana powierzchnia: min. 10 - 20 m2;                                                           \n• trwałość promiennika: min 8000h;            \n• napięcie zasilania: 230V, 50 Hz;                 \n• energooszczędna;                                     \n• obrót lampy (możliwość ustawienia kąta naświetlenia): min. 200°;                             \n• praca w systemie ciągłym;                        \n• urządzenie obsługiwane przez pilot;            \n• lampa wytrzymała na opary związków chemicznych.",null,null,"szt",1,null,{"$f":"H10*I10","v":{"v":0,"d":"0.00"}}]
[null,"Cena oferty (brutto):",{"$nulls":7},{"$f":"SUM(J10:J10)","v":{"v":0,"d":"0.00"}}]
[null,"*","Należy wpisać nazwę producenta oraz numer katalogowy producenta oferowanego produktu. Niepodanie ww. danych będzie skutkować odrzuceniem oferty, chyba że dane te będą jednoznacznie wynikać z innych dokumentów dołączonych do oferty."]
[null,"**","Zawiera podatek od towarów i usług (VAT) wg obowiązującej stawki oraz koszty wszystkich świadczeń niezbędnych do wykonania zamówienia, w szczególności koszty transportu, ubezpieczenia, opakowania (także kaucjonowanego) itp."]
[]
[null,"Wymagania dodatkowe:"]
[null,"1.","Do dostawy wymagana instrukcja obsługi w języku polskim w formie papierowej lub dostępna w formie elektronicznej w miejscu wskazanym przez wykonawcę (adres strony www), karta gwarancyjna oraz deklaracja CE w języku polskim lub angielskim            \n"]
[null,"2.","Wymagny okres gwarancji: min. 12 miesiecy od daty dostawy."]
[null,"3.","Miejsce dostawy:\n","WSSE Kraków  ul. Prądnicka 76, 31-202 Kraków \n"]

{"sheet":"Część 11","index":11,"n_rows":16,"n_cols":10,"rows_kept":16,"merged":[[0,6,0,9],[2,0,2,9],[3,0,3,9],[4,0,4,9],[6,1,8,1],[6,2,8,2],[6,3,8,3],[6,4,6,5],[6,6,8,6],[6,7,8,7],[6,8,8,8],[6,9,8,9],[7,4,8,4],[7,5,8,5],[10,1,10,8],[11,2,11,9],[12,2,12,9]]}
[null,null,"AGZ.272.9.2023",{"$nulls":3},"Załącznik 1A do SWZ"]
[]
["OPIS PRZEDMIOTU ZAMÓWIENIA - KALKULACJA CENY OFERTY"]
[{"$f":"MID(CELL(\"nazwa_pliku\",A1),FIND(\"]\",CELL(\"nazwa_pliku\",A1),1)+1,100)","v":"Część 11"}]
["Statyw (stojak) na  cylindry Nesslera "]
[{"$f":"HYPERLINK(\"#'Suma'!A1\",\"wstecz\")","v":"wstecz"}]
[null,"L.p.","Przedmiot zamówienia","Szczegółowy opis","Opis oferowanego produktu",null,"Jednostka miary","Ilość","Cena jednostkowa brutto [zł] **","Wartość brutto [zł] "]
[{"$nulls":4},"Producent*","Nr katalogowy producenta*"]
[]
[null,"1.","Statyw (stojak) na cylindry Nesslera ","• materiał: Plexi/ bezbarwne szkło akrylowe/ PMMA, przeźroczysty\n• średnica otworu 32-35 mm\n• 10 miejscowy (10 otworów)\n",null,null,"szt.",1,null,{"$f":"H10*I10","v":{"v":0,"d":"0.00"}}]
[null,"Cena oferty (brutto):",{"$nulls":7},{"$f":"SUM(J10:J10)","v":{"v":0,"d":"0.00"}}]
[null,"*","Należy wpisać nazwę producenta oraz numer katalogowy producenta oferowanego produktu. Niepodanie ww. danych będzie skutkować odrzuceniem oferty, chyba że dane te będą jednoznacznie wynikać z innych dokumentów dołączonych do oferty."]
[null,"**","Zawiera podatek od towarów i usług (VAT) wg obowiązującej stawki oraz koszty wszystkich świadczeń niezbędnych do wykonania zamówienia, w szczególności koszty transportu, ubezpieczenia, opakowania (także kaucjonowanego) itp."]
[]
[null,"Wymagania dodatkowe:"]
[null,"1.","Miejsce dostawy:\n","WSSE Oddział Laboratoryjny w Wadowicach,ul.Teatralna 2,34-100 Wadowice "]

{"sheet":"Część 12","index":12,"n_rows":19,"n_cols":10,"rows_kept":19,"merged":[[0,6,0,9],[2,0,2,9],[3,0,3,9],[4,0,4,9],[6,1,8,1],[6,2,8,2],[6,3,8,3],[6,4,6,5],[6,6,8,6],[6,7,8,7],[6,8,8,8],[6,9,8,9],[7,4,8,4],[7,5,8,5],[10,1,10,8],[11,2,11,9],[12,2,12,9],[15,2,15,9],[16,2,16,6],[17,2,17,6]]}
[null,null,"AGZ.272.9.2023",{"$nulls":3},"Załącznik 1A do SWZ"]
[]
["OPIS PRZEDMIOTU ZAMÓWIENIA - KALKULACJA CENY OFERTY"]
[{"$f":"MID(CELL(\"nazwa_pliku\",A1),FIND(\"]\",CELL(\"nazwa_pliku\",A1),1)+1,100)","v":"Część 12"}]
["Urządzenie do pomiaru siły kompresji piersi (waga mammograficzna)"]
[{"$f":"HYPERLINK(\"#'Suma'!A1\",\"wstecz\")","v":"wstecz"}]
[null,"L.p.","Przedmiot zamówienia","Szczegółowy opis","Opis oferowanego produktu",null,"Jednostka miary","Ilość","Cena jednostkowa brutto [zł] **","Wartość brutto [zł] "]
[{"$nulls":4},"Producent*","Nr katalogowy producenta*"]
[]
[null,"1.","Urządzenie do pomiaru siły kompresji piersi (waga mammograficzna)","• zakres pomiarowy do 25 kg;\n• podświetlany, odłączalny wyświetlacz LCD (kabel o dł. min. 100 cm); \n• wymiary szalki 20 ±1 cm x 16 ±1 cm;\n• zasilany bateriami;  \n• w zestawie blok piankowy twardy do oceny symetrycznego i niesymetrycznego podpracia tacki uciskowej mammografu o wymiarach  300±5 X 100±2 X 50 ±2 [mm], \n• gęstość właściwa bloku piankowego: 0,03 g/cm3",null,null,"szt",1,null,{"$f":"H10*I10","v":{"v":0,"d":"0.00"}}]
[null,"Cena oferty (brutto):",{"$nulls":7},{"$f":"SUM(J10:J10)","v":{"v":0,"d":"0.00"}}]
[null,"*","Należy wpisać nazwę producenta oraz numer katalogowy producenta oferowanego produktu. Niepodanie ww. danych będzie skutkować odrzuceniem oferty, chyba że dane te będą jednoznacznie wynikać z innych dokumentów dołączonych do oferty."]
[null,"**","Zawiera podatek od towarów i usług (VAT) wg obowiązującej stawki oraz koszty wszystkich świadczeń niezbędnych do wykonania zamówienia, w szczególności koszty transportu, ubezpieczenia, opakowania (także kaucjonowanego) itp."]
[]
[null,"Wymagania dodatkowe:"]
[null,"1.","Do dostawy wymagane  świadectwo wzorcowania zapewniające zachowanie spójności pomiarowej wystawione przez akredytowane laboratorium, w  punktach: 10, 13, 17, 20 oraz 25 kg.  Niepewność podana przy poziomie ufności 95% i współczynniku rozszerzenia k=2."]
[null,"2.","Wymagany okres gwarancji: min. 24 miesięcy od daty dostawy."]
[null,"3.","Do dostawy wymagana instrukcja obsługi w języku polskim i karta gwarancyjna."]
[null,"4.","Miejsce dostawy:\n","WSSE Krakowie  ul. Prądnicka 76, 31-202 Kraków "]

{"sheet":"Część 13","index":13,"n_rows":16,"n_cols":10,"rows_kept":16,"merged":[[0,6,0,9],[2,0,2,9],[3,0,3,9],[4,0,4,9],[6,1,8,1],[6,2,8,2],[6,3,8,3],[6,4,6,5],[6,6,8,6],[6,7,8,7],[6,8,8,8],[6,9,8,9],[7,4,8,4],[7,5,8,5],[10,1,10,8],[11,2,11,9],[12,2,12,9]]}
[null,null,"AGZ.272.9.2023",{"$nulls":3},"Załącznik 1A do SWZ"]
[]
["OPIS PRZEDMIOTU ZAMÓWIENIA - KALKULACJA CENY OFERTY"]
[{"$f":"MID(CELL(\"nazwa_pliku\",A1),FIND(\"]\",CELL(\"nazwa_pliku\",A1),1)+1,100)","v":"Część 13"}]
["Pinceta do filtrów membranowych"]
[{"$f":"HYPERLINK(\"#'Suma'!A1\",\"wstecz\")","v":"wstecz"}]
[null,"L.p.","Przedmiot zamówienia","Szczegółowy opis","Opis oferowanego produktu",null,"Jednostka miary","Ilość","Cena jednostkowa brutto [zł] **","Wartość brutto [zł] "]
[{"$nulls":4},"Producent*","Nr katalogowy producenta*"]
[]
[null,"1.","Pinceta laboratoryjna standardowa do filtrów membranowych","• zastosowanie: do delikatnego chwytania filtrów membranowych; \n• wykonana ze stali szlachetnej;    \n• kształ końcówki: z przodu lekko zaokrąglona i spłaszczona;                        \n• długość 105±5 mm;                                   \n• autoklawowalna.",null,null,"szt",3,null,{"$f":"H10*I10","v":{"v":0,"d":"0.00"}}]
[null,"Cena oferty (brutto):",{"$nulls":7},{"$f":"SUM(J10:J10)","v":{"v":0,"d":"0.00"}}]
[null,"*","Należy wpisać nazwę producenta oraz numer katalogowy producenta oferowanego produktu. Niepodanie ww. danych będzie skutkować odrzuceniem oferty, chyba że dane te będą jednoznacznie wynikać z innych dokumentów dołączonych do oferty."]
[null,"**","Zawiera podatek od towarów i usług (VAT) wg obowiązującej stawki oraz koszty wszystkich świadczeń niezbędnych do wykonania zamówienia, w szczególności koszty transportu, ubezpieczenia, opakowania (także kaucjonowanego) itp."]
[]
[null,"Wymagania dodatkowe:"]
[null,"1.","Miejsce dostawy:\n","WSSE Krakowie  ul. Prądnicka 76, 31-202 Kraków "]